[Event "Bistro Stella Rapid 2018"]
[Site "Limhamm"]
[Date "2018.12.01"]
[Round "1"]
[White "Hansen, Sune Berg"]
[Black "Hillarp Persson, Tiger"]
[Result "0-1"]
[ECO "A36"]
[WhiteElo "2583"]
[BlackElo "2546"]
[Annotator "RC"]
[PlyCount "62"]
[EventDate "2018.12.01"]
[EventType "swiss"]
[EventCountry "SWE"]
[SourceTitle "playchess.com"]
[Source "ChessBase"]
[SourceQuality "1"]
[TimeControl "900+5"]

1. c4 g6 {[%emt 0:00:24]} 2. Nc3 {[%emt 0:00:14]} Bg7 {[%emt 0:00:02]} 3. g3 {[%emt 0:00:12]} c5 {[%emt 0:00:18]} 4. Bg2 {[%emt 0:00:17]} Nc6 {[%emt 0:00:04]} 5. b3 {[%emt 0:00:24]} d6 {[%emt 0:00:26]} 6. Bb2 {[%emt 0:00:14]} Qd7 {[%emt 0:00:12]} 7. d3 {[%emt 0:00:44]} b6 {[%emt 0:00:18]} 8. Qd2 {[%emt 0:00:02]} Bb7 {[%emt 0:00:03]} 9. Nd5 {[%emt 0:00:43]} e5 {[%emt 0:01:36]} 10. e3 {[%emt 0:00:44]} Nge7 {[%emt 0:01:30]} 11. Ne2 {[%emt 0:00:23]} Nxd5 {[%emt 0:00:43]} 12. Bxd5 {[%emt 0:00:29]} Ne7 {[%emt 0:00:44]} 13. Bxb7 {[%emt 0:00:36]} Qxb7 {[%emt 0:00:02]} 14. e4 {[%emt 0:01:05]} f5 {[%emt 0:00:27]} 15. Nc3 {[%emt 0:01:49]} a6 {[%emt 0:00:35]} 16. f3 {[%emt 0:00:35]} b5 {[%emt 0:01:27]} 17. O-O {[%emt 0:00:04]} O-O {[%emt 0:00:05]} 18. Rf2 {[%emt 0:01:25]} b4 {[%emt 0:00:36]} 19. Ne2 {[%emt 0:00:40]} a5 {[%emt 0:01:29]} 20. f4 {[%emt 0:00:13]} a4 {[%emt 0:02:21]} 21. bxa4 {[%emt 0:00:48]} Rxa4 {[%emt 0:00:14]} 22. fxe5 {[%emt 0:00:05]} dxe5 {[%emt 0:00:02]} 23. Qe3 {[%emt 0:01:15]} Qc6 {[%emt 0:00:26]} 24. Nc1 {[%emt 0:00:31]} f4 {[%emt 0:00:37]} 25. gxf4 {[%emt 0:00:25]} exf4 {[%emt 0:00:03]} 26. Qe2 {[%emt 0:00:23]} Bxb2 {[%emt 0:00:30]} 27. Qxb2 {[%emt 0:00:02]} Qd6 {[%emt 0:00:03]} 28. e5 {[%emt 0:00:35]} Qc6 {[%emt 0:00:55]} 29. Nb3 {[%emt 0:00:43]} Raa8 {[%emt 0:00:14]} 30. Raf1 {[%emt 0:00:43]} g5 {[%emt 0:00:04]} 31. Qe2 {[%emt 0:00:13]} Nf5 {[%emt 0:00:18]} 0-1

[Event "Bistro Stella Rapid 2018"]
[Site "Limhamm"]
[Date "2018.12.01"]
[Round "2"]
[White "Westerberg, Jonathan"]
[Black "Tikkanen, Hans"]
[Result "1/2-1/2"]
[ECO "A05"]
[WhiteElo "2534"]
[BlackElo "2519"]
[Annotator "RC"]
[PlyCount "52"]
[EventDate "2018.12.01"]
[EventType "swiss"]
[EventCountry "SWE"]
[SourceTitle "playchess.com"]
[Source "ChessBase"]
[SourceQuality "1"]
[TimeControl "900+5"]

1. Nf3 {[%emt 0:00:06]} Nf6 {[%emt 0:00:14]} 2. g3 {[%emt 0:00:03]} g6 {[%emt 0:00:00]} 3. Bg2 {[%emt 0:00:01]} Bg7 {[%emt 0:00:01]} 4. O-O {[%emt 0:00:05]} O-O {[%emt 0:00:02]} 5. d4 {[%emt 0:00:02]} d6 {[%emt 0:00:05]} 6. a4 {[%emt 0:00:03]} Nbd7 {[%emt 0:00:15]} 7. a5 {[%emt 0:00:06]} c6 {[%emt 0:00:07]} 8. c4 {[%emt 0:00:50]} e5 {[%emt 0:00:27]} 9. Nc3 {[%emt 0:00:05]} Re8 {[%emt 0:00:17]} 10. e3 {[%emt 0:00:26]} e4 {[%emt 0:00:19]} 11. Nd2 {[%emt 0:00:02]} Qe7 {[%emt 0:00:28]} 12. Ndxe4 {[%emt 0:00:12]} Nxe4 {[%emt 0:00:04]} 13. Nxe4 {[%emt 0:00:04]} f5 {[%emt 0:00:01]} 14. Nc3 {[%emt 0:00:09]} Nf6 {[%emt 0:00:06]} 15. a6 {[%emt 0:00:16]} Qf7 {[%emt 0:00:24]} 16. Qa4 {[%emt 0:00:52]} Ne4 {[%emt 0:00:11]} 17. Nxe4 {[%emt 0:00:09]} fxe4 {[%emt 0:00:01]} 18. Bd2 {[%emt 0:00:04]} Bg4 {[%emt 0:00:25]} 19. axb7 {[%emt 0:01:00]} Qxb7 {[%emt 0:00:02]} 20. Qc2 {[%emt 0:00:02]} Be2 {[%emt 0:01:06]} 21. Rfe1 {[%emt 0:00:20]} Bd3 {[%emt 0:00:02]} 22. Qc3 {[%emt 0:00:20]} Qf7 {[%emt 0:00:49]} 23. Bf1 {[%emt 0:01:32]} Rf8 {[%emt 0:00:27]} 24. Bxd3 {[%emt 0:00:02]} Qxf2+ {[%emt 0:00:02]} 25. Kh1 {[%emt 0:00:01]} Qf3+ {[%emt 0:00:50]} 26. Kg1 {[%emt 0:00:01]} Qf2+ {[%emt 0:00:00]} 1/2-1/2

[Event "Bistro Stella Rapid 2018"]
[Site "Limhamm"]
[Date "2018.12.01"]
[Round "5"]
[White "Hector, Jonny"]
[Black "Semcesen, Daniel"]
[Result "0-1"]
[ECO "C50"]
[WhiteElo "2501"]
[BlackElo "2464"]
[Annotator "ChessBase"]
[PlyCount "96"]
[EventDate "2018.12.01"]
[EventType "swiss"]
[EventCountry "SWE"]
[SourceTitle "playchess.com"]
[Source "ChessBase"]
[SourceQuality "1"]
[TimeControl "900+5"]

1. e4 {[%emt 0:00:00]} e5 {[%emt 0:00:03]} 2. Nf3 {[%emt 0:00:02]} Nc6 {[%emt 0:00:08]} 3. Bc4 {[%emt 0:00:03]} Be7 {[%emt 0:00:15]} 4. O-O {[%emt 0:00:38]} Nf6 {[%emt 0:00:12]} 5. d4 {[%emt 0:00:03]} d6 {[%emt 0:00:06]} 6. dxe5 {[%emt 0:00:23]} Nxe5 {[%emt 0:00:14]} 7. Nxe5 {[%emt 0:00:05]} dxe5 {[%emt 0:00:04]} 8. Qe2 {[%emt 0:00:15]} c6 {[%emt 0:00:11]} 9. Rd1 {[%emt 0:00:53]} Qc7 {[%emt 0:00:10]} 10. b3 {[%emt 0:00:06]} O-O {[%emt 0:00:22]} 11. Bb2 {[%emt 0:00:02]} Bg4 {[%emt 0:00:55]} 12. f3 {[%emt 0:00:03]} Bd7 {[%emt 0:00:24]} 13. a4 {[%emt 0:00:10]} Rfd8 {[%emt 0:00:32]} 14. Nd2 {[%emt 0:00:29]} Bc5+ {[%emt 0:00:36]} 15. Kh1 {[%emt 0:00:04]} Be8 {[%emt 0:00:02]} 16. Nf1 {[%emt 0:01:18]} Qe7 {[%emt 0:00:59]} 17. Qe1 {[%emt 0:01:41]} Nh5 {[%emt 0:03:09]} 18. g3 {[%emt 0:00:45]} Nf6 {[%emt 0:01:19]} 19. g4 {[%emt 0:00:34]} Nd7 {[%emt 0:00:06]} 20. Qg3 {[%emt 0:00:32]} a6 {[%emt 0:00:52]} 21. a5 {[%emt 0:00:15]} Kh8 {[%emt 0:00:14]} 22. g5 {[%emt 0:00:14]} f6 {[%emt 0:01:24]} 23. gxf6 {[%emt 0:00:52]} Qxf6 {[%emt 0:00:04]} 24. Be2 {[%emt 0:02:07]} Bg6 {[%emt 0:00:23]} 25. Nd2 {[%emt 0:00:09]} Bd6 {[%emt 0:01:23]} 26. Nc4 {[%emt 0:00:07]} Bc7 {[%emt 0:00:01]} 27. Rd2 {[%emt 0:00:46]} Bf7 {[%emt 0:00:43]} 28. Rad1 {[%emt 0:00:08]} Be6 {[%emt 0:00:02]} 29. Bc3 Bxc4 {[%emt 0:01:03]} 30. Bxc4 {[%emt 0:00:47]} Nf8 {[%emt 0:00:03]} 31. Rxd8 {[%emt 0:01:18]} Rxd8 {[%emt 0:00:02]} 32. Rxd8 {[%emt 0:00:02]} Qxd8 {[%emt 0:00:02]} 33. Bxe5 {[%emt 0:00:01]} Qd1+ {[%emt 0:00:16]} 34. Kg2 {[%emt 0:00:02]} Qxc2+ {[%emt 0:00:18]} 35. Kh3 {[%emt 0:00:02]} Bxe5 {[%emt 0:00:18]} 36. Qxe5 {[%emt 0:00:02]} Qd1 {[%emt 0:00:21]} 37. Qf5 {[%emt 0:01:16]} Qd8 {[%emt 0:00:10]} 38. Bf7 {[%emt 0:00:28]} Qe7 {[%emt 0:00:14]} 39. Kg2 {[%emt 0:00:22]} g6 {[%emt 0:00:02]} 40. Qf4 {[%emt 0:00:02]} Kg7 {[%emt 0:00:01]} 41. Bc4 {[%emt 0:00:02]} g5 {[%emt 0:00:09]} 42. Qb8 {[%emt 0:00:13]} Ng6 {[%emt 0:00:02]} 43. Kf2 {[%emt 0:00:23]} Qc5+ {[%emt 0:00:03]} 44. Ke1 {[%emt 0:00:08]} Qe3+ {[%emt 0:00:05]} 45. Kd1 {[%emt 0:00:16]} Qxf3+ {[%emt 0:00:06]} 46. Kc2 {[%emt 0:00:27]} Qxe4+ {[%emt 0:00:04]} 47. Bd3 {[%emt 0:00:01]} Qe7 {[%emt 0:00:07]} 48. Bf5 Qc5+ {[%emt 0:00:04]} 0-1